bitfinex/quotes_ETHUSD_20250924
["timestamp","ask_amount","ask_price","bid_price","bid_amount"]
[1758690601975,0.6696,4155.5,4155.4,2.99318888]
[1758690602186,0.6696,4155.5,4155.4,8.99118888]
[1758690602579,0.6696,4155.5,4155.4,2.87318888]
[1758690602781,0.6696,4155.5,4155.4,2.38244499]
[1758690603088,0.001,4155.5,4155.4,8.50044499]
[1758690603480,0.6696,4155.5,4155.4,8.50044499]
[1758690606372,0.2351,4155.5,4155.4,8.50044499]
[1758690606572,0.2351,4155.5,4155.4,8.99022532]
[1758690607497,0.001,4155.5,4155.4,8.99022532]
[1758690607818,0.001,4155.5,4155.4,9.66752532]
[1758690609484,0.6696,4155.5,4155.4,4.95422532]
[1758690609778,0.6696,4155.5,4155.4,8.98922532]
[1758690612307,0.6696,4155.5,4155.4,2.99222532]
[1758690612509,0.6696,4155.5,4155.4,8.61944499]
[1758690612927,0.6696,4155.5,4155.4,0.12]
[1758690613136,0.6696,4155.5,4155.4,4.155]
[1758690613436,1.4616,4155.5,4155.4,4.035]
[1758690613799,0.792,4155.4,4154.9,0.004]
[1758690614008,0.792,4155.4,4155.0,4.035]
[1758690614305,3.22220928,4155.5,4155.0,4.035]
[1758690614306,0.792,4155.2,4155.0,4.035]
[1758690614501,1.4747,4155.1,4155.0,4.035]
[1758690614702,0.6827,4155.1,4155.0,4.035]
[1758690614897,0.6827,4155.1,4155.0,6.44173886]
[1758690615112,0.6827,4155.1,4155.0,4.035]
[1758690615929,0.6827,4155.1,4155.0,6.44173886]
[1758690616547,0.2259,4155.1,4155.0,6.44173886]
[1758690617147,0.6827,4155.4,4155.3,2.4065651]
[1758690617305,0.6827,4155.4,4155.3,6.4415651]
[1758690617502,0.001,4155.5,4155.4,2.40650719]
[1758690617704,0.001,4155.5,4155.4,2.55057226]
[1758690618627,0.001,4155.5,4155.4,2.52651006]
[1758690619137,0.6837,4155.5,4155.4,2.52650719]
[1758690619339,0.2269,4155.5,4155.4,2.52650719]
[1758690620007,0.6837,4155.5,4155.4,0.12]
[1758690620210,1.4757,4155.5,4155.1,2.40667541]
[1758690620443,0.83027,4155.4,4155.2,4.035]
[1758690620610,0.4568,4155.3,4155.2,4.035]
[1758690620809,0.6827,4155.3,4155.2,4.035]
[1758690621012,0.6827,4155.3,4155.2,6.44162302]
[1758690622508,0.6827,4155.3,4155.2,4.035]
[1758690622710,0.6827,4155.3,4155.2,6.44162302]
[1758690623518,0.793,4155.5,4155.4,2.40650719]
[1758690623718,0.793,4155.5,4155.4,6.44150719]
[1758690624115,1.4757,4155.5,4155.4,6.44150719]
[1758690624311,0.2269,4155.5,4155.4,6.44150719]
[1758690624516,0.2269,4155.5,4155.4,4.035]
[1758690624723,0.6837,4155.5,4155.4,6.44150719]
[1758690625659,0.6837,4155.5,4155.4,4.035]
[1758690626749,0.6837,4155.5,4155.4,6.44150719]
[1758690627750,0.6837,4155.5,4155.4,4.035]
[1758690629014,0.6837,4155.5,4155.4,6.44150719]
[1758690629436,0.6837,4155.5,4155.0,0.004]
[1758690629752,0.6837,4155.5,4155.1,4.155]
[1758690629947,0.6827,4155.4,4155.1,4.155]
[1758690630251,0.6827,4155.3,4155.1,4.155]
[1758690630451,0.001,4155.5,4155.1,4.155]
[1758690630452,1.4747,4155.2,4155.1,0.0959326]
[1758690630658,0.792,4155.1,4155.0,0.004]
[1758690630949,1.2488,4155.1,4155.0,2.193]
[1758690631135,1.4747,4155.1,4155.0,2.193]
[1758690634627,0.14757,4155.2,4155.0,2.193]
[1758690635316,0.37347,4155.2,4155.0,2.193]
[1758690635521,0.128547,4155.1,4155.0,2.193]
[1758690636621,0.354447,4155.1,4155.0,2.1689355]
[1758690637526,0.354447,4155.1,4155.0,2.1729355]
[1758690637959,0.128547,4155.1,4155.0,2.1729355]
[1758690640318,0.354447,4155.1,4155.0,2.1729355]
[1758690640524,1.146447,4155.1,4155.0,2.1729355]
[1758690641942,0.920547,4155.1,4155.0,2.1729355]
[1758690642325,1.616547,4155.1,4155.0,2.1729355]
[1758690644868,0.824547,4155.1,4155.0,2.1729355]
[1758690645524,0.363347,4155.1,4155.0,2.1729355]
[1758690648968,0.363347,4155.1,4155.0,2.1488681]
[1758690649479,0.128547,4155.1,4155.0,2.1488681]
[1758690650472,0.001,4155.4,4155.2,2.40662151]
[1758690650775,0.001,4155.4,4155.3,4.035]
[1758690650972,0.001,4155.4,4155.3,4.2669]
[1758690651375,0.001,4155.4,4155.3,7.1229651]
[1758690651676,0.001,4155.4,4155.3,6.6734651]
[1758690651876,0.001,4155.4,4155.3,7.2429651]
[1758690654556,0.001,4155.4,4155.3,7.2189006]
[1758690658178,0.001,4155.4,4155.3,4.8123355]
[1758690658358,0.001,4155.4,4155.3,7.2189006]
[1758690659549,0.001,4155.4,4155.3,6.7694006]
[1758690660148,0.001,4155.4,4155.3,7.2189006]
[1758690661656,0.001,4155.5,4155.4,5.40650719]
[1758690661886,0.001,4155.5,4155.4,8.16990719]
[1758690667088,0.001,4155.5,4155.4,8.14118889]
[1758690672484,0.001,4155.5,4155.4,8.09637309]
[1758690675528,0.001,4155.5,4155.4,7.41497309]
[1758690675742,0.001,4155.5,4155.4,10.73154631]
[1758690676038,0.001,4155.5,4155.4,16.84554631]
[1758690679135,0.2302,4155.5,4155.4,16.84554631]
[1758690679335,0.001,4155.5,4155.4,16.84554631]
[1758690679712,0.2302,4155.5,4155.4,10.73154631]
[1758690680038,0.6799,4155.5,4155.4,16.84554631]
[1758690680207,0.6799,4155.5,4155.4,13.84554631]
[1758690680941,0.6799,4155.5,4155.4,6.36497309]
[1758690681741,0.001,4155.5,4155.4,6.36497309]
[1758690685241,0.2302,4155.5,4155.4,6.34090569]
[1758690685454,0.6799,4155.5,4155.4,4.032]
[1758690685775,0.6799,4155.5,4155.3,0.12]
[1758690685973,0.6799,4155.5,4155.4,4.032]
[1758690686268,0.6799,4155.5,4155.4,6.43750719]
[1758690690479,0.6799,4155.5,4155.4,6.41344269]
[1758690690660,0.001,4155.5,4155.4,6.41344269]
[1758690690975,0.001,4155.5,4155.4,7.25054269]
[1758690693437,0.001,4155.9,4155.8,2.40627556]
[1758690693636,0.001,4155.9,4155.8,11.83584878]
[1758690693834,0.001,4155.9,4155.8,12.42904878]
[1758690694037,0.001,4155.9,4155.8,12.67294878]
[1758690695435,0.001,4155.9,4155.8,12.19974878]
[1758690695640,0.001,4155.9,4155.8,14.28174878]
[1758690695940,0.001,4155.9,4155.8,7.92484878]
[1758690696138,0.001,4155.9,4155.8,14.03784878]
[1758690696873,0.2302,4155.9,4155.8,14.03784878]
[1758690697076,0.001,4155.9,4155.8,14.03784878]
[1758690698584,0.001,4155.9,4155.8,14.75494878]
[1758690698784,0.2302,4155.9,4155.8,14.03784878]
[1758690699387,0.001,4155.9,4155.8,14.03784878]
[1758690701355,0.001,4155.9,4155.8,14.28174878]
[1758690701557,0.001,4155.9,4155.8,14.71554878]
[1758690703289,0.001,4155.9,4155.8,7.92484878]
[1758690703492,0.001,4155.9,4155.8,13.99863858]
[1758690703493,0.2454,4155.9,4155.8,13.99863858]
[1758690703794,0.001,4155.9,4155.8,13.99863858]
[1758690704696,0.001,4155.9,4155.8,14.23513858]
[1758690705222,0.001,4155.9,4155.8,13.99863858]
[1758690706021,0.001,4155.9,4155.8,7.88763858]
[1758690706216,0.001,4155.9,4155.8,13.99863858]
[1758690708022,0.001,4155.9,4155.8,7.88763858]
[1758690708632,0.001,4155.9,4155.8,13.97457408]
[1758690708927,0.001,4155.9,4155.8,11.89357408]
[1758690709229,0.001,4155.9,4155.8,13.97457408]
[1758690709429,0.001,4155.9,4155.8,14.21107408]
[1758690709635,0.001,4155.9,4155.8,8.10007408]
[1758690710136,0.001,4155.9,4155.8,14.21107408]
[1758690710433,0.001,4155.9,4155.8,14.52487408]
[1758690710599,0.001,4155.9,4155.8,14.64487408]
[1758690715233,0.001,4156.4,4156.1,0.792]
[1758690715444,0.001,4156.4,4156.3,7.80455931]
[1758690715815,0.001,4156.4,4156.3,8.59485931]
[1758690718553,0.001,4156.4,4156.3,9.87062613]
[1758690719311,0.001,4156.4,4156.3,9.20032613]
[1758690719622,0.001,4156.4,4156.3,9.67559821]
[1758690720051,0.001,4156.4,4156.3,9.91209821]
[1758690720758,0.001,4156.4,4156.3,9.67559821]
[1758690720954,0.001,4156.4,4156.3,3.00125817]
[1758690721154,0.6758,4156.4,4156.3,9.11125817]
[1758690721543,0.6758,4156.4,4156.3,3.00125817]
[1758690721756,0.6758,4156.4,4156.3,9.11125817]
[1758690722554,0.2454,4156.4,4156.3,9.11125817]
[1758690722781,0.001,4156.4,4156.3,9.11125817]
[1758690722981,0.2454,4156.4,4156.3,9.11125817]
[1758690724383,0.001,4156.4,4156.3,9.11125817]
[1758690724890,0.001,4156.4,4156.3,9.78155817]
[1758690725483,0.001,4156.4,4156.3,9.34775817]
[1758690725689,0.001,4156.4,4156.3,9.11125817]
[1758690726450,0.001,4156.4,4156.3,9.08719367]
[1758690727254,0.6758,4156.4,4156.3,7.00519367]
[1758690727456,0.6758,4156.4,4156.3,9.08619367]
[1758690730187,0.6758,4156.4,4156.3,2.85719367]
[1758690730382,0.6758,4156.4,4156.3,8.49092159]
[1758690730587,0.6758,4156.4,4156.2,2.40598622]
[1758690730881,0.001,4156.4,4156.3,8.51498609]
[1758690731302,0.6758,4156.4,4156.3,8.51498609]
[1758690733672,0.2454,4156.4,4156.3,8.51498609]
[1758690734070,0.6963,4156.4,4156.3,8.51498609]
[1758690734269,0.6963,4156.4,4156.3,2.40598609]
[1758690734604,0.6963,4156.4,4156.3,8.51498609]
[1758690735405,0.2454,4156.4,4156.3,8.51498609]
[1758690737103,0.6963,4156.4,4156.3,8.51498609]
[1758690737607,0.2454,4156.4,4156.3,8.51498609]
[1758690738611,0.6963,4156.4,4156.3,8.51498609]
[1758690739522,0.2454,4156.4,4156.3,8.51498609]
[1758690740311,0.6963,4156.4,4156.3,8.63498609]
[1758690741423,0.6963,4156.4,4156.3,6.55398609]
[1758690741623,0.6963,4156.4,4156.3,8.63498609]
[1758690741789,0.6963,4156.4,4156.3,2.52598609]
[1758690741989,0.6963,4156.4,4156.3,8.63498609]
[1758690743326,0.6963,4156.4,4156.3,2.52598609]
[1758690743532,0.6963,4156.4,4156.3,4.148]
[1758690744593,0.6963,4156.4,4156.3,4.1239355]
[1758690744911,0.6963,4156.4,4156.3,4.028]
[1758690745285,0.6963,4156.4,4156.3,6.43398609]
[1758690746801,0.6963,4156.4,4156.3,6.43798609]
[1758690748002,0.6963,4156.4,4156.3,4.032]
[1758690749216,0.6963,4156.4,4156.3,6.43798609]
[1758690751344,0.001,4156.4,4156.3,6.43798609]
[1758690751541,0.6817,4156.4,4156.3,4.032]
[1758690751721,0.6817,4156.4,4156.3,6.43798609]
[1758690752108,0.2308,4156.4,4156.3,6.43798609]
[1758690752309,0.6817,4156.4,4156.3,6.43798609]
[1758690754854,0.2308,4156.4,4156.3,6.43798609]
[1758690755560,0.6817,4156.4,4156.3,6.43798609]
[1758690757221,0.6817,4156.4,4156.3,4.032]
[1758690757422,0.6817,4156.4,4156.3,0.004]
[1758690757666,0.6817,4156.4,4156.3,2.772]
[1758690757859,0.6817,4156.4,4156.3,4.031]
[1758690758534,0.6817,4156.4,4156.3,0.004]
[1758690762539,0.12,4156.3,4156.2,4.0069355]
[1758690762731,0.8298,4156.3,4156.2,4.0069355]
[1758690765652,0.95071026,4156.3,4156.2,4.0069355]
[1758690767064,0.95071026,4156.3,4155.8,0.004]
[1758690767362,0.95071026,4156.3,4155.9,3.308]
[1758690767664,0.7098,4156.2,4155.9,3.308]
[1758690767863,0.7098,4156.1,4155.9,3.308]
[1758690768069,0.24091026,4156.3,4155.9,3.308]
[1758690768371,0.2363,4156.0,4155.9,3.308]
[1758690768931,0.12,4156.3,4155.9,3.308]
[1758690769233,0.001,4156.4,4156.3,2.40598609]
[1758690769567,0.001,4156.4,4156.3,9.01162063]
[1758690769871,0.001,4156.5,4156.4,9.08026824]
[1758690770167,0.001,4156.5,4156.4,9.78196824]
[1758690772431,0.2363,4158.4,4156.7,2.40575456]
[1758690772649,0.2363,4158.4,4156.7,6.4568121]
[1758690772846,0.2363,4158.4,4157.2,2.40546521]
[1758690773072,0.2363,4158.4,4157.2,15.2118599]
[1758690773369,0.2363,4158.4,4157.2,15.88950525]
[1758690773761,0.2363,4158.4,4157.2,16.12580525]
[1758690774461,0.2363,4158.3,4157.2,16.12580525]
[1758690775272,0.02,4158.9,4157.4,2.40534913]
[1758690775473,0.02,4158.9,4157.8,9.07945813]
[1758690775638,0.02,4158.9,4157.8,13.10545813]
[1758690775838,0.02,4158.9,4157.8,15.35980538]
[1758690776139,0.02,4158.9,4157.8,7.13281809]
[1758690776372,0.02,4158.9,4157.8,13.80715813]
[1758690778612,0.02,4158.9,4157.8,12.52274593]
[1758690779111,0.02,4158.9,4157.8,12.64274593]
[1758690780474,0.02,4158.9,4157.8,12.61868893]
[1758690780678,0.7098,4158.7,4157.8,12.61868893]
[1758690781193,0.2363,4158.7,4157.8,12.61868893]
[1758690781713,0.02,4158.9,4157.8,12.61868893]
[1758690782384,0.00100001,4157.9,4157.8,12.61868893]
[1758690786120,0.00100001,4157.9,4157.8,9.97198893]
[1758690786289,0.23730001,4157.9,4157.8,13.99598893]
[1758690786489,0.00100001,4157.9,4157.8,13.99598893]
[1758690786684,0.00100001,4157.9,4157.8,14.45888893]
[1758690786941,0.00100001,4157.9,4157.8,14.69768893]
[1758690793996,0.00100001,4157.9,4157.8,17.69768893]
[1758690795432,0.001,4158.4,4158.3,2.40482889]
[1758690795633,0.001,4158.4,4158.3,17.20768457]
[1758690795836,0.001,4158.4,4158.3,17.88128457]
[1758690796034,0.001,4158.4,4158.3,7.79475673]
[1758690796427,0.001,4158.4,4158.3,13.89775673]
[1758690796938,0.2381,4158.4,4158.3,8.50782889]
[1758690797139,0.2381,4158.4,4158.3,13.89775673]
[1758690797438,0.001,4158.4,4158.3,13.89775673]
[1758690798338,0.001,4158.4,4158.3,7.79475673]
[1758690798636,0.7117,4158.4,4158.3,13.87174273]
[1758690801540,0.001,4158.4,4158.3,13.87174273]
[1758690802134,0.001,4158.4,4158.3,14.11184273]
[1758690803424,0.001,4158.4,4158.3,13.87174273]
[1758690803946,0.001,4158.4,4158.3,14.11184273]
[1758690804150,0.001,4158.4,4158.3,14.54534273]
[1758690804624,0.001,4158.4,4158.3,13.87174273]
[1758690805244,0.001,4158.4,4158.3,14.23184273]
[1758690805419,0.001,4158.4,4158.3,14.66534273]
[1758690805620,0.001,4158.4,4158.3,20.05527057]
[1758690809655,0.001,4158.4,4158.3,14.66534273]
[1758690810156,0.001,4158.4,4158.3,20.05527057]
[1758690810351,0.001,4158.4,4158.3,14.66534273]
[1758690811727,0.001,4158.4,4158.3,13.99174273]
[1758690812459,0.001,4158.4,4158.3,14.23184273]
[1758690812656,0.001,4158.4,4158.3,7.88874273]
[1758690812962,0.7117,4158.4,4158.3,13.99174273]
[1758690813255,0.7117,4158.4,4158.3,13.99074273]
[1758690813443,0.001,4158.4,4158.3,13.99074273]
[1758690814566,0.7117,4158.4,4158.3,13.99074273]
[1758690815330,0.7117,4158.4,4158.3,7.88874273]
[1758690815532,0.7117,4158.4,4158.3,13.99074273]
[1758690818340,0.7117,4158.4,4158.3,7.88874273]
[1758690818541,0.7117,4158.4,4158.3,13.99074273]
[1758690824356,0.7117,4158.4,4158.3,7.88874273]
[1758690824556,0.7117,4158.4,4158.3,13.99074273]
[1758690825370,0.7117,4158.4,4158.3,7.88874273]
[1758690825571,0.7117,4158.4,4158.3,13.99074273]
[1758690826244,0.2381,4158.4,4158.3,13.99074273]
[1758690828074,0.001,4158.4,4158.3,13.99074273]
[1758690828279,0.2475,4158.4,4158.3,13.99074273]
[1758690829379,0.001,4158.4,4158.3,13.99074273]
[1758690829959,0.001,4158.4,4158.3,14.68194273]
[1758690833488,0.001,4158.4,4158.3,13.99074273]
[1758690833489,0.2475,4158.4,4158.3,13.99074273]
[1758690833889,0.7084,4158.4,4158.3,13.99074273]
[1758690834446,0.001,4158.4,4158.3,2.49881489]
[1758690834655,0.7084,4158.4,4158.3,8.60081489]
[1758690834977,0.7084,4158.4,4158.3,13.99074273]
[1758690837293,0.7084,4158.4,4158.3,8.62682889]
[1758690838484,0.7084,4158.4,4158.3,0.12]
[1758690838685,0.7084,4158.4,4158.3,6.222]
[1758690838897,0.7084,4158.4,4158.3,8.62682889]
[1758690839983,0.7084,4158.4,4158.3,6.222]
[1758690840199,0.001,4158.4,4158.3,8.62682889]
[1758690840603,0.7084,4158.4,4158.3,8.62682889]
[1758690842380,0.7084,4158.4,4158.3,0.12]
[1758690842577,0.7084,4158.4,4158.3,2.52482889]
[1758690842813,0.7084,4158.4,4158.3,6.54682889]
[1758690843819,0.7084,4158.4,4158.3,4.142]
[1758690844217,0.7084,4158.4,4158.3,6.54682889]
[1758690845318,0.7084,4158.4,4158.3,4.142]
[1758690845690,0.7084,4158.4,4158.3,6.54682889]
[1758690847124,0.7084,4158.4,4158.3,8.62682889]
[1758690848828,0.2475,4158.4,4158.3,8.62682889]
[1758690850705,0.7084,4158.4,4158.3,6.222]
[1758690852129,0.7084,4158.4,4158.3,0.12]
[1758690852328,0.7084,4158.4,4158.3,0.41]
[1758690854600,0.001,4158.4,4158.3,2.81482889]
[1758690854820,0.001,4158.4,4158.3,2.81882889]
[1758690855414,0.2445,4158.4,4158.3,2.81882889]
[1758690855816,0.6796,4158.4,4158.3,2.81882889]
[1758690857217,0.2445,4158.4,4158.3,2.81882889]
[1758690858535,0.6796,4158.4,4158.3,2.81882889]
[1758690858836,0.2445,4158.4,4158.3,2.81882889]
[1758690859145,0.001,4158.4,4158.3,2.81882889]
[1758690860337,0.2445,4158.4,4158.3,2.81882889]
[1758690860927,0.2445,4158.4,4158.3,0.414]
[1758690861128,0.6796,4158.4,4158.3,0.414]
[1758690861945,0.6796,4158.4,4158.3,2.81882889]
[1758690862158,0.2445,4158.4,4158.3,2.81882889]
[1758690862338,0.001,4158.4,4158.3,2.81882889]
[1758690863623,0.001,4158.4,4158.3,0.414]
[1758690864029,0.2445,4158.4,4158.3,0.414]
[1758690864655,0.2445,4158.4,4158.3,2.81882889]
[1758690865167,0.001,4158.4,4158.3,2.81882889]
[1758690866240,0.001,4158.4,4158.3,0.414]
[1758690866642,0.2445,4158.4,4158.3,0.414]
[1758690867045,0.2445,4158.4,4158.3,2.81882889]
[1758690868448,0.6796,4158.4,4158.3,0.414]
[1758690868615,0.2445,4158.4,4158.3,0.414]
[1758690868820,0.6796,4158.4,4158.3,0.414]
[1758690871435,0.2445,4158.4,4158.3,0.414]
[1758690872646,0.001,4158.4,4158.3,2.81882889]
[1758690872868,0.001,4158.4,4158.3,3.04642889]
[1758690873386,0.001,4158.4,4158.3,2.81882889]
[1758690874780,0.001,4158.4,4158.3,3.04642889]
[1758690875663,0.001,4158.4,4158.3,2.81882889]
[1758690877544,0.001,4158.4,4158.3,0.414]
[1758690878547,0.001,4158.4,4158.3,2.81882889]
[1758690881948,0.001,4158.4,4158.3,0.414]
[1758690882183,0.2433,4158.4,4158.3,0.414]
[1758690882488,0.2433,4158.4,4158.3,2.81882889]
[1758690882687,0.001,4158.4,4158.3,2.81882889]
[1758690884097,0.001,4158.4,4158.3,0.414]
[1758690884467,0.2433,4158.4,4158.3,0.414]
[1758690885233,0.2433,4158.4,4158.3,2.81882889]
[1758690885343,0.001,4158.4,4158.3,2.81882889]
[1758690886464,0.001,4158.4,4158.3,0.414]
[1758690886674,0.2433,4158.4,4158.3,0.414]
[1758690886983,0.001,4158.4,4158.3,2.81882889]
[1758690887783,0.001,4158.4,4158.3,0.414]
[1758690888748,0.001,4158.4,4158.3,2.81882889]
[1758690893295,0.001,4158.4,4158.3,3.05462889]
[1758690893613,0.001,4158.4,4158.3,3.64867717]
[1758690895516,0.001,4158.4,4158.3,3.62462889]
[1758690896830,0.001,4158.4,4158.3,3.64867717]
[1758690899793,0.001,4158.4,4158.3,2.76462889]
[1758690899994,0.001,4158.4,4158.3,8.86462889]
[1758690900434,0.001,4158.4,4158.3,2.204]
[1758690900657,0.7017,4158.4,4158.3,8.62882889]
[1758690901340,0.001,4158.4,4158.3,8.86462889]
[1758690901566,0.001,4158.4,4158.3,9.31462889]
[1758690903685,0.001,4158.4,4158.3,14.70640368]
[1758690904265,0.001,4158.4,4158.3,9.31462889]
[1758690905932,0.001,4158.4,4158.3,7.23362889]
[1758690906167,0.001,4158.4,4158.3,9.31362889]
[1758690909251,0.001,4158.4,4158.3,3.21462889]
[1758690909462,0.001,4158.4,4158.3,9.31362889]
[1758690909644,0.001,4158.4,4158.3,4.84462889]
[1758690909977,0.001,4158.4,4158.3,2.52882889]
[1758690910178,0.7017,4158.4,4158.3,2.204]
[1758690910369,0.7017,4158.4,4158.3,8.62782889]
[1758690911774,0.7017,4158.4,4158.3,6.223]
[1758690911947,0.7017,4158.4,4158.3,0.124]
[1758690912258,0.7017,4158.4,4158.3,4.023]
[1758690912577,0.7017,4158.4,4158.3,6.42782889]
[1758690912784,0.7017,4158.4,4158.3,4.023]
[1758690913786,0.7017,4158.4,4158.3,6.42782889]
[1758690914481,0.7017,4158.4,4158.3,4.023]
[1758690914985,0.7017,4158.4,4158.3,6.42782889]
[1758690915186,0.7017,4158.4,4158.3,4.023]
[1758690915584,0.7017,4158.4,4158.3,6.42782889]
[1758690918289,0.2433,4158.4,4158.3,6.42782889]
[1758690918884,0.001,4158.4,4158.3,6.65612889]
[1758690919078,0.001,4158.4,4158.3,7.21482889]
[1758690926985,0.001,4158.4,4158.3,6.77612889]
[1758690927186,0.001,4158.4,4158.3,7.21482889]
[1758690930636,0.001,4158.4,4158.3,10.21482889]
[1758690931705,0.001,4158.4,4158.3,15.60660368]
[1758690933233,0.001,4158.4,4158.3,7.21482889]
[1758690933902,0.001,4158.4,4158.3,12.60660368]
[1758690934100,0.021,4158.9,4158.5,2.40467637]
[1758690934101,1e-08,4158.9,4158.5,2.40467637]
[1758690934336,0.2294,4160.2,4159.4,2.40418767]
[1758690934498,0.2294,4160.2,4159.8,5.39177479]
[1758690934697,0.2294,4160.2,4159.8,11.81273651]
[1758690934920,0.2294,4160.2,4159.8,12.04103651]
[1758690935229,0.2294,4160.2,4159.8,12.52818117]
[1758690935930,0.125779,4161.7,4159.8,12.29988117]
[1758690936098,0.2494,4159.9,4159.8,12.29988117]
[1758690937916,0.6961,4159.9,4159.8,8.50096172]
[1758690938114,0.6961,4159.9,4159.8,2.40396172]
[1758690938333,0.6961,4159.9,4159.8,6.097]
[1758690939047,0.6961,4159.9,4159.8,8.50096172]
[1758690943051,0.6961,4159.9,4159.8,6.097]
[1758690943550,0.6961,4159.9,4158.4,0.239]
[1758690943722,0.6961,4159.9,4159.3,2.40420859]
[1758690943916,0.02,4159.9,4159.4,7.23218558]
[1758690944116,0.6694,4159.8,4159.7,2.40401952]
[1758690944320,0.6694,4159.8,4159.7,6.42001952]
[1758690945122,0.6694,4159.8,4159.7,2.40401952]
[1758690945322,0.6694,4159.8,4159.7,4.016]
[1758690945745,0.6694,4159.8,4159.7,6.42001952]
[1758690946263,0.6694,4159.8,4159.4,2.52418594]
[1758690946264,0.6694,4159.8,4159.4,2.08]
[1758690946570,0.7894,4159.7,4159.5,4.016]
[1758690946876,0.6694,4159.6,4159.5,4.016]
[1758690947172,0.6694,4159.6,4158.6,2.40460738]
[1758690947338,0.6694,4159.5,4158.7,2.40459277]
[1758690947676,1.15634,4159.4,4158.8,6.096]
[1758690947848,0.6694,4159.3,4158.7,0.12]
[1758690948039,0.12,4159.1,4158.8,2.02]
[1758690948378,0.6694,4159.0,4158.9,4.016]
[1758690949537,0.6694,4159.0,4158.3,0.004]
[1758690949734,0.6694,4159.0,4158.4,0.322]
[1758690949735,2.40476615,4158.5,4158.4,0.322]
[1758690949950,7.15382024,4158.5,4158.4,0.322]
[1758690950158,7.15382024,4158.5,4158.3,0.004]
[1758690950159,6.19677106,4158.4,4158.3,0.004]
[1758690950379,9.18377479,4158.4,4158.3,0.004]
[1758690950557,6.86617106,4158.4,4158.3,0.004]
[1758690951244,4.4614,4158.4,4158.3,0.004]
[1758690951439,5.62701379,4158.4,4158.3,0.004]
[1758690951744,4.83501379,4158.4,4158.3,0.004]
[1758690953191,0.64956622,4159.6,4158.3,4.02]
[1758690953358,1.3925451,4159.5,4158.6,2.40464826]
[1758690953557,0.6694,4159.4,4158.7,4.016]
[1758690953778,0.13925451,4159.3,4158.7,4.016]
[1758690953990,0.37707773,4159.4,4158.8,0.239]
[1758690954191,0.37707773,4159.4,4158.9,2.40448195]
[1758690954391,0.2366,4159.7,4159.1,2.40431227]
[1758690954596,0.2366,4159.7,4159.2,4.017]
[1758690954960,0.2366,4159.6,4159.2,4.017]
[1758690955594,0.6694,4159.5,4159.2,4.017]
[1758690955760,0.6694,4159.4,4159.2,4.017]
[1758690955957,0.6694,4159.3,4158.8,2.40453419]
[1758690956193,0.34703522,4159.6,4158.9,4.7153]
[1758690956380,0.2366,4159.7,4158.9,7.11977402]
[1758690956714,0.6694,4159.6,4158.5,2.40469103]
[1758690956892,3.6694,4159.5,4158.6,6.097]
[1758690957067,0.6694,4159.4,4158.7,2.40457881]
[1758690957269,0.2366,4159.3,4158.6,6.097]
[1758690957473,0.2366,4159.3,4158.7,0.239]
[1758690957966,1.0286,4159.7,4158.8,0.4593]
[1758690958173,0.14814,4159.6,4158.9,0.239]
[1758690958384,0.14814,4159.6,4159.0,4.016]
[1758690959558,0.12,4159.2,4159.0,4.016]
[1758690960271,0.6694,4159.1,4159.0,4.016]
[1758690961998,0.12,4159.2,4159.0,4.016]
[1758690962179,0.12,4159.2,4159.0,4.255]
[1758690962515,0.12,4159.2,4159.0,4.016]
[1758690962516,0.6694,4159.1,4159.0,4.016]
[1758690963404,0.6694,4159.1,4159.0,4.02]
[1758690963785,0.2366,4159.1,4159.0,4.02]
[1758690964243,0.6694,4159.1,4159.0,4.02]
[1758690965514,0.12,4159.2,4159.0,4.02]
[1758690965692,0.2366,4159.1,4159.0,4.02]
[1758690965880,0.12,4159.2,4159.0,4.02]
[1758690966308,0.12,4159.5,4159.1,2.40436632]
[1758690966508,0.12,4159.5,4159.2,0.6983]
[1758690966700,0.12,4159.5,4159.3,4.016]
[1758690966889,0.12,4159.5,4159.3,4.255]
[1758690967210,0.12,4159.5,4159.4,0.239]
[1758690967883,0.12,4159.5,4159.3,4.016]
[1758690968107,0.12,4159.5,4159.3,4.255]
[1758690968303,0.6694,4159.4,4159.0,0.004]
[1758690968498,0.37805556,4159.8,4159.1,4.016]
[1758690968499,0.001,4159.8,4159.1,4.016]
[1758690968805,1.24371574,4159.7,4159.1,4.016]
[1758690969003,0.12,4159.5,4159.1,4.016]
[1758690969204,0.12,4159.5,4159.2,0.239]
[1758690969403,0.12,4159.5,4159.3,2.86355071]
[1758690969638,0.12,4159.5,4159.4,7.11849291]
[1758690970141,0.121,4159.8,4159.5,2.4041266]
[1758690970315,0.121,4159.8,4159.5,2.40411688]
[1758690970734,0.121,4159.8,4159.6,0.239]
[1758690970938,0.121,4159.8,4159.7,4.016]
[1758690971135,0.001,4159.8,4159.7,4.016]
[1758690971506,0.12,4159.7,4159.6,4.016]
[1758690971707,0.85836,4159.7,4159.6,4.016]
[1758690972440,7.05437952,4159.7,4159.6,4.016]
[1758690972606,7.05437952,4159.7,4159.4,4.016]
[1758690972607,0.792,4159.5,4159.4,4.016]
[1758690972802,3.12,4159.4,4159.3,4.016]
[1758690973010,0.6846,4159.4,4159.3,4.016]
[1758690973203,0.849636,4159.4,4159.3,4.016]
[1758690973605,0.40006,4159.7,4159.3,4.016]
[1758690973810,0.17376,4159.7,4159.4,0.2379]
[1758690974034,0.12,4159.5,4159.3,6.42023963]